Workbook

Sheet Внутренние цены
A1: Товар | B1: Прокат листовой горячекатаный стальной, без дополнительной обработки | C1: Прокат листовой холоднокатаный из прочих нелегированных сталей, без дополнительной обработки, шириной не менее 600 мм | D1: Прокат сортовой и катанка стальные прочие, кованые, горячекатаные, горячетянутые или экструдированные, без дополнительной обработки, включая смотанные после прокатки, из нелегированных сталей | E1: Прокат листовой горячекатаный стальной, без дополнительной обработки | F1: Прокат листовой холоднокатаный из прочих нелегированных сталей, без дополнительной обработки, шириной не менее 600 мм | G1: Прокат сортовой и катанка стальные прочие, кованые, горячекатаные, горячетянутые или экструдированные, без дополнительной обработки, включая смотанные после прокатки, из нелегированных сталей
A2: Период сравнения | E2: Месяц к месяцу | F2: Месяц к месяцу | G2: Месяц к месяцу
B3: Тонна;^метрическая тонна (1000 кг) | C3: Тонна;^метрическая тонна (1000 кг) | D3: Тонна;^метрическая тонна (1000 кг) | E3: изм. год к году | F3: изм. год к году | G3: изм. год к году
A4: 2017-01-31 | B4: 34380.35 | D4: 27256
A5: 2017-02-28 | B5: 34707.76 | D5: 26827
A6: 2017-03-31 | B6: 35017.52 | D6: 26334
A7: 2017-04-30 | B7: 33482.87 | D7: 24744
A8: 2017-05-31 | B8: 33247.44 | D8: 23525
A9: 2017-06-30 | B9: 31059.75 | D9: 22223
A10: 2017-07-31 | B10: 28831.98 | D10: 22755
A11: 2017-08-31 | B11: 30199.14 | D11: 23970
A12: 2017-09-30 | B12: 33390.75 | D12: 26688
A13: 2017-10-31 | B13: 36842.82 | D13: 27976
A14: 2017-11-30 | B14: 35810.48 | D14: 27573
A15: 2017-12-31 | B15: 34675.43 | D15: 26938
A16: 2018-01-31 | B16: 34903.16 | D16: 26360 | E16: =B16/B4-1 -> 0.01520665147 | G16: =D16/D4-1 -> -0.03287349574
A17: 2018-02-28 | B17: 36888.93 | D17: 26972 | E17: 0.06284387123 | G17: 0.005405002423
A18: 2018-03-31 | B18: 37516.24 | D18: 27873 | E18: 0.07135628108 | G18: 0.05844155844
A19: 2018-04-30 | B19: 39229.88 | D19: 28230 | E19: 0.1716403044 | G19: 0.1408826382
A20: 2018-05-31 | B20: 40514.69 | D20: 29519 | E20: 0.2185807388 | G20: 0.2547927736
A21: 2018-06-30 | B21: 41365.02 | D21: 30657 | E21: 0.3317885688 | G21: 0.3795167169
A22: 2018-07-31 | B22: 38665.23 | D22: 30117 | E22: 0.3410535801 | G22: 0.3235332894
A23: 2018-08-31 | B23: 38405.13 | D23: 31551 | E23: 0.2717292612 | G23: 0.3162703379
A24: 2018-09-30 | B24: 39929.88 | D24: 32293 | E24: 0.1958365715 | G24: 0.2100194844
A25: 2018-10-31 | B25: 37480.87 | D25: 31830 | E25: 0.01731816403 | G25: 0.1377609379
A26: 2018-11-30 | B26: 37174.22 | D26: 30508 | E26: 0.03808214802 | G26: 0.1064447104
A27: 2018-12-31 | B27: 36108.35 | D27: 29892 | E27: 0.04132378459 | G27: 0.1096592175
A28: 2019-01-31 | B28: 35911.47 | D28: 30323 | E28: 0.02888878829 | G28: 0.1503414264
A29: 2019-02-28 | B29: 35600.71 | D29: 28103 | E29: -0.03492158759 | G29: 0.04193237431
A30: 2019-03-31 | B30: 37027.66 | D30: 29247 | E30: -0.0130231601 | G30: 0.04929501668
A31: 2019-04-30 | B31: 38304.9 | D31: 29605 | E31: -0.02357845601 | G31: 0.04870704924
A32: 2019-05-31 | B32: 38545.63 | D32: 30628 | E32: -0.04860113702 | G32: 0.03756902334
A33: 2019-06-30 | B33: 38390.49 | D33: 30689 | E33: -0.07190930888 | G33: 0.001043807287
A34: 2019-07-31 | B34: 38404.67 | D34: 31321 | E34: -0.006738871074 | G34: 0.03997742139
A35: 2019-08-31 | B35: 39010.39 | D35: 31311 | E35: 0.01575987375 | G35: -0.007606731958
A36: 2019-09-30 | B36: 38258.81 | D36: 29500 | E36: -0.04185011325 | G36: -0.08648933205
A37: 2019-10-31 | B37: 37443.67 | D37: 28312 | E37: -0.0009925063106 | G37: -0.1105246623
A38: 2019-11-30 | B38: 36244.29 | D38: 27142 | E38: -0.02501545426 | G38: -0.1103317163
A39: 2019-12-31 | B39: 33400.95 | D39: 26137 | E39: -0.07497988692 | G39: -0.1256188947
A40: 2020-01-31 | B40: 34667.75 | D40: 28243 | E40: -0.03463294596 | G40: -0.06859479603
A41: 2020-02-29 | B41: 35509.77 | D41: 28752 | E41: -0.002554443437 | G41: 0.0230936199
A42: 2020-03-31 | B42: 36707.34 | D42: 27847 | E42: -0.008650830217 | G42: -0.04786815742
A43: 2020-04-30 | B43: 38439.2 | D43: 29424 | E43: 0.003506078857 | G43: -0.006113832123
A44: 2020-05-31 | B44: 35976.81 | D44: 28639 | E44: -0.06664361174 | G44: -0.06494057725
A45: 2020-06-30 | B45: 35004.93 | D45: 28103 | E45: -0.08818746518 | G45: -0.08426472026
A46: 2020-07-31 | B46: 34397.7 | D46: 28352 | E46: -0.1043354884 | G46: -0.09479263114
A47: 2020-08-31 | B47: 34840.89 | D47: 29613 | E47: -0.106881782 | G47: -0.05423014276
A48: 2020-09-30 | B48: 35807.55 | D48: 30887 | E48: -0.06407047161 | G48: 0.04701694915
A49: 2020-10-31 | B49: 36458.77 | D49: 32756 | E49: -0.02630351138 | G49: 0.1569652444
A50: 2020-11-30 | B50: 37602.34 | D50: 34071 | E50: 0.03746935034 | G50: 0.2552870091
A51: 2020-12-31 | B51: 40328.49 | D51: 34524 | E51: 0.207405478 | G51: 0.3208861002
A52: 2021-01-31 | B52: 47216.38 | D52: 39111 | E52: 0.3619684 | G52: 0.3848033141
A53: 2021-02-28 | B53: 55314.61 | D53: 41450 | E53: 0.5577293235 | G53: 0.4416388425
A54: 2021-03-31 | B54: 55591.18 | D54: 42070 | E54: 0.5144431604 | G54: 0.510755198
A55: 2021-04-30 | B55: 57934.73 | D55: 43129 | E55: 0.5071783492 | G55: 0.4657762371
A56: 2021-05-31 | B56: 70400.62 | D56: 47722 | E56: 0.9568333046 | G56: 0.6663291316
A57: 2021-06-30 | B57: 82757.71 | D57: 54788 | E57: 1.364172989 | G57: 0.9495427534
A58: 2021-07-31 | B58: 89219.8 | D58: 58625 | E58: 1.593772258 | G58: 1.067755361
A59: 2021-08-31 | B59: 84816.32 | D59: 56322 | E59: 1.434390166 | G59: 0.901934961
A60: 2021-09-30 | B60: 75997.84 | D60: 54247 | E60: 1.122397092 | G60: 0.7563052417
A61: 2021-10-31 | B61: 62861.68 | D61: 49878 | E61: 0.7241854292 | G61: 0.522713396
A62: 2021-11-30 | B62: 62044.09 | D62: 53748 | E62: 0.65000609 | G62: 0.5775292771
A63: 2021-12-31 | B63: 66419.52 | D63: 55652 | E63: 0.6469627303 | G63: 0.6119800718
A64: 2022-01-31 | B64: 64777.38 | D64: 54453 | E64: 0.3719260138 | G64: 0.3922681599
A65: 2022-02-28 | B65: 65746.86 | D65: 54035 | E65: 0.1885984553 | G65: 0.3036188179
A66: 2022-03-31 | B66: 68993.82 | D66: 57009 | E66: 0.2410929216 | G66: 0.3550986451
A67: 2022-04-30 | B67: 70370.34 | D67: 57463 | E67: 0.2146486227 | G67: 0.3323517819
A68: 2022-05-31 | B68: 69654.95 | D68: 55545 | E68: -0.01059181013 | G68: 0.1639285864
A69: 2022-06-30 | B69: 62511.02 | D69: 47023 | E69: -0.2446501963 | G69: -0.1417281156
A70: 2022-07-31 | B70: 54477.79 | D70: 40223 | E70: -0.3893979812 | G70: -0.3138933902
A71: 2022-08-31 | B71: 47268.11 | D71: 39593 | E71: -0.4427002964 | G71: -0.2970242534
A72: 2022-09-30 | B72: 47766.67 | D72: 39217 | E72: -0.3714733208 | G72: -0.2770660129
A73: 2022-10-31 | B73: 48423.62 | D73: 38745 | E73: -0.2296798304 | G73: -0.2232046193
A74: 2022-11-30 | B74: 48007.5 | D74: 38120 | E74: -0.2262357301 | G74: -0.2907643075
A75: 2022-12-31 | B75: 50095.7 | D75: 38536 | E75: -0.2457684127 | G75: -0.3075540861
A76: 2023-01-31 | B76: 49995.78 | C76: 49396.05 | D76: 36296 | E76: -0.2281907666 | G76: -0.3334435201
A77: 2023-02-28 | B77: 49726.97 | C77: 51477.75 | D77: 37456 | E77: -0.2436601535 | G77: -0.3068196539
A78: 2023-03-31 | B78: 52350.11 | C78: 55075.48 | D78: 41688 | E78: -0.2412347947 | G78: -0.2687470399
A79: 2023-04-30 | B79: 55951.56 | C79: 60842.02 | D79: 45484 | E79: -0.2048985411 | G79: -0.2084645772
A80: 2023-05-31 | B80: 54463.52 | C80: 57985.9 | D80: 46632 | E80: -0.2180954835 | G80: -0.1604644883
A81: 2023-06-30 | B81: 57482.16 | C81: 60842.01 | D81: 45984 | E81: -0.08044757548 | G81: -0.02209557025
A82: 2023-07-31 | B82: 56400.03 | C82: 60836.6 | D82: 45162 | E82: 0.0352848381 | G82: 0.1227904433
A83: 2023-08-31 | B83: 56297.67 | C83: 60837.58 | D83: 46960 | E83: 0.1910285814 | G83: 0.1860682444
A84: 2023-09-30 | B84: 56709.35 | C84: 62022.3 | D84: 49446 | E84: 0.1872158976 | G84: 0.2608307622
A85: 2023-10-31 | B85: 58067.66 | C85: 64748.13 | D85: 54090 | E85: 0.1991598315 | G85: 0.3960511034
A86: 2023-11-30 | B86: 58388.59 | C86: 66671.1 | D86: 55292 | E86: 0.216238921 | G86: 0.4504721931
A87: 2023-12-31 | B87: 58079.52 | C87: 69131.74 | D87: 52554 | E87: 0.1593713632 | G87: 0.3637637534
A88: 2024-01-31 | B88: 59202.66 | C88: 69370.71 | D88: 48836 | E88: 0.1841531425 | F88: =C88/C76-1 -> 0.404377678 | G88: 0.3454926163
A89: 2024-02-29 | B89: 58829.95 | C89: 70543.95 | D89: 48362 | E89: 0.1830592131 | F89: =C89/C77-1 -> 0.3703774932 | G89: 0.2911683041
A90: 2024-03-31 | B90: 57676.14 | C90: 70547.2 | D90: 50785 | E90: 0.1017386592 | F90: =C90/C78-1 -> 0.2809184777 | G90: 0.2182162733
A91: 2024-04-30 | B91: 57398.48 | C91: 70555.49 | D91: 52159 | E91: 0.02586022624 | F91: =C91/C79-1 -> 0.1596506822 | G91: 0.1467549028
A92: 2024-05-31 | B92: 58151.9 | D92: 52820 | E92: 0.06772202751 | G92: =D92/D80-1 -> 0.1326985761
A93: 2024-06-30 | B93: 58363.47 | C93: 70568.7 | D93: 54174 | E93: 0.01533188732 | F93: =C93/C81-1 -> 0.1598679925 | G93: 0.178105428
A94: 2024-07-31 | B94: 58648.84 | C94: 70571.95 | D94: 54255 | E94: 0.03987249652 | F94: =C94/C82-1 -> 0.1600245576 | G94: 0.2013418361
A95: 2024-08-31 | B95: 57558.56 | C95: 70570.48 | D95: 53248 | E95: 0.02239684165 | F95: =C95/C83-1 -> 0.1599817087 | G95: 0.1339011925
A96: 2024-09-30 | B96: 57311.17 | C96: 70574.56 | D96: 50880 | E96: 0.01061235934 | F96: =C96/C84-1 -> 0.1378900815 | G96: 0.02900133479
A97: 2024-10-31 | B97: 57407.49 | C97: 67731.45 | D97: 47415 | E97: -0.01136897888 | F97: =C97/C85-1 -> 0.04607577084 | G97: -0.1234054354
A98: 2024-11-30 | B98: 56495.73 | C98: 67715.71 | D98: 46622 | E98: -0.03241832009 | F98: =C98/C86-1 -> 0.01566810807 | G98: -0.1568038776
A99: 2024-12-31 | B99: 55851.25 | C99: 67179.26 | D99: 44532 | E99: -0.03836584738 | F99: =C99/C87-1 -> -0.02824288814 | G99: -0.1526429958
A100: 2025-01-31 | B100: 52996 | C100: 65655.82 | D100: 44655 | E100: -0.1048375191 | F100: =C100/C88-1 -> -0.05355127546 | G100: -0.08561307232
A101: 2025-02-28 | B101: 51040.63 | C101: 65662.03 | D101: 43160 | E101: -0.1324039881 | F101: =C101/C89-1 -> -0.06920395016 | G101: -0.1075637898
A102: 2025-03-31 | B102: 50343.97 | C102: 63517.09 | D102: 43733 | E102: -0.1271265726 | F102: =C102/C90-1 -> -0.09965115554 | G102: -0.1388598996
A103: 2025-04-30 | B103: 51119.16 | C103: 65185.11 | D103: 44519 | E103: -0.1093987158 | F103: =C103/C91-1 -> -0.07611569277 | G103: -0.1464752008
A104: 2025-05-31 | B104: 52593.36 | C104: 66461.22 | D104: 44869 | E104: -0.09558655865 | G104: =D104/D92-1 -> -0.1505301022
A105: 2025-06-30 | B105: 53170.47 | C105: 65183.63 | D105: 44680 | E105: -0.08897688914 | F105: =C105/C93-1 -> -0.07630961035 | G105: -0.17525012
A106: 2025-07-31 | B106: 53380.47 | C106: 66469.49 | D106: 43105 | E106: -0.08982905715 | F106: =C106/C94-1 -> -0.05813159478 | G106: -0.2055110128

Sheet Экспортные цены
A1: Товар | B1: Прокат сортовой и катанка стальные прочие, кованые, горячекатаные, горячетянутые или экструдированные, без дополнительной обработки, включая смотанные после прокатки, из нелегированных сталей | C1: Прокат сортовой и катанка стальные прочие, кованые, горячекатаные, горячетянутые или экструдированные, без дополнительной обработки, включая смотанные после прокатки, из нелегированных сталей
A2: Период сравнения | B2: Тонна;^метрическая тонна (1000 кг) | C2: изм. год к году
A3: 2017-01-31 | B3: 23809.3
A4: 2017-02-28 | B4: 22819.91
A5: 2017-03-31 | B5: 23139.23
A6: 2017-04-30 | B6: 23710.16
A7: 2017-05-31 | B7: 23248.21
A8: 2017-06-30 | B8: 21755.03
A9: 2017-07-31 | B9: 23481.42
A10: 2017-08-31 | B10: 23968.92
A11: 2017-09-30 | B11: 25744.85
A12: 2017-10-31 | B12: 27400.34
A13: 2017-11-30 | B13: 28621.85
A14: 2017-12-31 | B14: 29273.47
A15: 2018-01-31 | B15: 28989.13 | C15: =B15/B3-1 -> 0.217554905
A16: 2018-02-28 | B16: 29628.07 | C16: 0.2983429821
A17: 2018-03-31 | B17: 28707.45 | C17: 0.2406398139
A18: 2018-04-30 | B18: 31592.26 | C18: 0.3324355466
A19: 2018-05-31 | B19: 33667.76 | C19: 0.4481871938
A20: 2018-06-30 | B20: 33812.83 | C20: 0.5542534301
A21: 2018-07-31 | B21: 34238.96 | C21: 0.4581298746
A22: 2018-08-31 | B22: 36317.6 | C22: 0.5151955115
A23: 2018-09-30 | B23: 36434.09 | C23: 0.4151991563
A24: 2018-10-31 | B24: 35684.53 | C24: 0.3023389491
A25: 2018-11-30 | B25: 33411.79 | C25: 0.1673525646
A26: 2018-12-31 | B26: 32867.94 | C26: 0.1227893379
A27: 2019-01-31 | B27: 33867.79 | C27: 0.1682927359
A28: 2019-02-28 | B28: 30018.42 | C28: 0.013175006
A29: 2019-03-31 | B29: 31030.65 | C29: 0.08092672808
A30: 2019-04-30 | B30: 31803.31 | C30: 0.006680433752
A31: 2019-05-31 | B31: 33058.48 | C31: -0.01809683804
A32: 2019-06-30 | B32: 32197.96 | C32: -0.04775909026
A33: 2019-07-31 | B33: 30019.28 | C33: -0.1232420611
A34: 2019-08-31 | B34: 29822.05 | C34: -0.1788540542
A35: 2019-09-30 | B35: 30809.08 | C35: -0.1543886508
A36: 2019-10-31 | B36: 28375.52 | C36: -0.2048229303
A37: 2019-11-30 | B37: 27251.49 | C37: -0.1843750365
A38: 2019-12-31 | B38: 24957.78 | C38: -0.2406649154
A39: 2020-01-31 | B39: 26563.39 | C39: -0.2156739486
A40: 2020-02-29 | B40: 27695.29 | C40: -0.07739014912
A41: 2020-03-31 | B41: 29243.22 | C41: -0.05760208052
A42: 2020-04-30 | B42: 31139.09 | C42: -0.02088524748
A43: 2020-05-31 | B43: 28536.85 | C43: -0.136776706
A44: 2020-06-30 | B44: 27670.13 | C44: -0.1406247477
A45: 2020-07-31 | B45: 28047.7 | C45: -0.06567712483
A46: 2020-08-31 | B46: 28201.45 | C46: -0.05434234065
A47: 2020-09-30 | B47: 31008.77 | C47: 0.00648153077
A48: 2020-10-31 | B48: 33425.39 | C48: 0.1779657254
A49: 2020-11-30 | B49: 35828.52 | C49: 0.3147361851
A50: 2020-12-31 | B50: 35535.25 | C50: 0.423814538
A51: 2021-01-31 | B51: 35701.03 | C51: 0.3439937448
A52: 2021-02-28 | B52: 41659.16 | C52: 0.5041965619
A53: 2021-03-31 | B53: 41581.82 | C53: 0.4219302799
A54: 2021-04-30 | B54: 44902.93 | C54: 0.4420116323
A55: 2021-05-31 | B55: 49250.93 | C55: 0.7258712857
A56: 2021-06-30 | B56: 49212.1 | C56: 0.778527965
A57: 2021-07-31 | B57: 51003.17 | C57: 0.8184439366
A58: 2021-08-31 | B58: 63220.74 | C58: 1.241754945
A59: 2021-09-30 | B59: 54818.41 | C59: 0.76783568
A60: 2021-10-31 | B60: 55103.13 | C60: 0.648541124
A61: 2021-11-30 | B61: 52927.73 | C61: 0.4772513629
A62: 2021-12-31 | B62: 53647.14 | C62: 0.5096879859
A63: 2022-01-31 | B63: 56269.65 | C63: 0.5761351983
A64: 2022-02-28 | B64: 56248.91 | C64: 0.3502170951
A65: 2022-03-31 | B65: 80530.09 | C65: 0.9366658314
A66: 2022-04-30 | B66: 62197.73 | C66: 0.3851597212
A67: 2022-05-31 | B67: 53566.2 | C67: 0.08761804092
A68: 2022-06-30 | B68: 49524.89 | C68: 0.006355957173
A69: 2022-07-31 | B69: 41683.9 | C69: -0.182719427
A70: 2022-08-31 | B70: 37839.36 | C70: -0.4014723649
A71: 2022-09-30 | B71: 43076.36 | C71: -0.2141990255
A72: 2022-10-31 | B72: 35279.32 | C72: -0.3597583295
A73: 2022-11-30 | B73: 35151.71 | C73: -0.33585457
A74: 2022-12-31 | B74: 35449.02 | C74: -0.3392188288
A75: 2023-01-31 | B75: 40351.21 | C75: -0.282895664
A76: 2023-02-28 | B76: 41557.77 | C76: -0.2611808833
A77: 2023-03-31 | B77: 44463.75 | C77: -0.4478616626
A78: 2023-04-30 | B78: 39169.74 | C78: -0.3702384315
A79: 2023-05-31 | B79: 43474.61 | C79: -0.188394734
A80: 2023-06-30 | B80: 44034.8 | C80: -0.110855168
A81: 2023-07-31 | B81: 44143.8 | C81: 0.05901319214
A82: 2023-08-31 | B82: 47157.07 | C82: 0.2462438582
A83: 2023-09-30 | B83: 50383.42 | C83: 0.1696303959
A84: 2023-10-31 | B84: 52030.99 | C84: 0.4748297303
A85: 2023-11-30 | B85: 50181.49 | C85: 0.4275689575
A86: 2023-12-31 | B86: 53206.31 | C86: 0.5009247082
A87: 2024-01-31 | B87: 49021.29 | C87: 0.2148654278
A88: 2024-02-29 | B88: 49647.95 | C88: 0.194673102
A89: 2024-03-31 | B89: 47775.51 | C89: 0.07448224677
A90: 2024-04-30 | B90: 50182.35 | C90: 0.2811509599
A91: 2024-05-31 | B91: 49759.97 | C91: 0.14457542
A92: 2024-06-30 | B92: 47403.53 | C92: 0.07650153969
A93: 2024-07-31 | B93: 46468.87 | C93: 0.05267036368
A94: 2024-08-31 | B94: 45358.22 | C94: -0.03814592382
A95: 2024-09-30 | B95: 44766.54 | C95: -0.111482706
A96: 2024-10-31 | B96: 45660.75 | C96: -0.1224316508
A97: 2024-11-30 | B97: 46664.05 | C97: -0.07009437145
A98: 2024-12-31 | B98: 49135.38 | C98: -0.07651216557
A99: 2025-01-31 | B99: 54122.49 | C99: 0.104060909
A100: 2025-02-28 | B100: 49992.14 | C100: 0.006932612525
A101: 2025-03-31 | B101: 51037.63 | C101: 0.06828017116
A102: 2025-04-30 | B102: 50328.51 | C102: 0.002912577829
A103: 2025-05-31 | B103: 44253.19 | C103: -0.1106668674
A104: 2025-06-30 | B104: 43405.37 | C104: -0.08434308584
A105: 2025-07-31 | B105: 43220.56 | C105: -0.06990292641

Sheet Производство
C1: Сырые данные из Росстата | F1: Сумма за последние 12 месяцев | I1: Изменение год к году
B2: Продукция | C2: Сталь нелегированная в слитках или в прочих первичных формах и полуфабрикаты из нелегированной стали | D2: Чугун зеркальный и передельный в чушках, болванках или в прочих первичных формах | E2: Прокат готовый | F2: Сталь нелегированная в слитках или в прочих первичных формах и полуфабрикаты из нелегированной стали | G2: Чугун зеркальный и передельный в чушках, болванках или в прочих первичных формах | H2: Прокат готовый | I2: Сталь нелегированная в слитках или в прочих первичных формах и полуфабрикаты из нелегированной стали | J2: Чугун зеркальный и передельный в чушках, болванках или в прочих первичных формах | K2: Прокат готовый
B3: Ед. измерения | C3: Тонна;^метрическая тонна (1000 кг) | D3: Тысяча тонн | E3: Тонна;^метрическая тонна (1000 кг) | F3: Тонна;^метрическая тонна (1000 кг) | G3: Тысяча тонн | H3: Тонна;^метрическая тонна (1000 кг) | I3: Тонна;^метрическая тонна (1000 кг) | J3: Тысяча тонн | K3: Тонна;^метрическая тонна (1000 кг)
A4: Конец периода | B4: Период | C4: Месяц | D4: Месяц | E4: Месяц | F4: ПДМ | G4: ПДМ | H4: ПДМ
A5: 2017-01-31 | B5: январь 2017 | C5: 4571073.06 | D5: 4459 | E5: 4956435.6
A6: 2017-02-28 | B6: февраль | C6: 4331517.08 | D6: 3991.13 | E6: 4654661.21
A7: 2017-03-31 | B7: март | C7: 5034007.97 | D7: 4499.57 | E7: 5357148.38
A8: 2017-04-30 | B8: апрель | C8: 4843141.34 | D8: 4461.5 | E8: 5101234.53
A9: 2017-05-31 | B9: май | C9: 4525025.93 | D9: 4301.02 | E9: 5005375.99
A10: 2017-06-30 | B10: июнь | C10: 4234013.02 | D10: 4114.06 | E10: 4706334.89
A11: 2017-07-31 | B11: июль | C11: 4704597 | D11: 4358.05 | E11: 5162383.32
A12: 2017-08-31 | B12: август | C12: 4562191.46 | D12: 4360.86 | E12: 5341633.21
A13: 2017-09-30 | B13: сентябрь | C13: 4440550.45 | D13: 4289.53 | E13: 5065231.78
A14: 2017-10-31 | B14: октябрь | C14: 4401118.51 | D14: 4343.31 | E14: 5235580.45
A15: 2017-11-30 | B15: ноябрь | C15: 4291983.58 | D15: 4395.82 | E15: 4803512.3
A16: 2017-12-31 | B16: декабрь | C16: 4511115 | D16: 4583 | E16: 5446628 | F16: =SUM(C5:C16) -> 54450334.4 | G16: 52156.85 | H16: 60836159.66
A17: 2018-01-31 | B17: январь 2018 | C17: 4795720.59 | D17: 4542.19 | E17: 5122920.81 | F17: =SUM(C6:C17) -> 54674981.93 | G17: 52240.04 | H17: 61002644.87
A18: 2018-02-28 | B18: февраль | C18: 4269719.01 | D18: 4018.98 | E18: 4805302.67 | F18: =SUM(C7:C18) -> 54613183.86 | G18: 52267.89 | H18: 61153286.33
A19: 2018-03-31 | B19: март | C19: 4950835.79 | D19: 4443.24 | E19: 5409822.89 | F19: =SUM(C8:C19) -> 54530011.68 | G19: 52211.56 | H19: 61205960.84
A20: 2018-04-30 | B20: апрель | C20: 4755542.2 | D20: 4345.95 | E20: 5205005.87 | F20: =SUM(C9:C20) -> 54442412.54 | G20: 52096.01 | H20: 61309732.18
A21: 2018-05-31 | B21: май | C21: 4831157.07 | D21: 4300.23 | E21: 5305337.88 | F21: =SUM(C10:C21) -> 54748543.68 | G21: 52095.22 | H21: 61609694.07
A22: 2018-06-30 | B22: июнь | C22: 5299817.69 | D22: 4305.55 | E22: 5021536.57 | F22: =SUM(C11:C22) -> 55814348.35 | G22: 52286.71 | H22: 61924895.75
A23: 2018-07-31 | B23: июль | C23: 5274239.13 | D23: 4500.94 | E23: 5391710.3 | F23: =SUM(C12:C23) -> 56383990.48 | G23: 52429.6 | H23: 62154222.73
A24: 2018-08-31 | B24: август | C24: 5036662.09 | D24: 4345.89 | E24: 5196795.67 | F24: =SUM(C13:C24) -> 56858461.11 | G24: 52414.63 | H24: 62009385.19
A25: 2018-09-30 | B25: сентябрь | C25: 4907843.85 | D25: 4164.7 | E25: 5035626.18 | F25: =SUM(C14:C25) -> 57325754.51 | G25: 52289.8 | H25: 61979779.59
A26: 2018-10-31 | B26: октябрь | C26: 4740969.5 | D26: 4185.19 | E26: 4989732.02 | F26: =SUM(C15:C26) -> 57665605.5 | G26: 52131.68 | H26: 61733931.16
A27: 2018-11-30 | B27: ноябрь | C27: 4926332.6 | D27: 4298.42 | E27: 4981168.95 | F27: =SUM(C16:C27) -> 58299954.52 | G27: 52034.28 | H27: 61911587.81
A28: 2018-12-31 | B28: декабрь | C28: 5064583.08 | D28: 4398.14 | E28: 5284748.58 | F28: =SUM(C17:C28) -> 58853422.6 | G28: 51849.42 | H28: 61749708.39 | I28: =F28-F16 -> 4403088.2 | J28: -307.43 | K28: 913548.73
A29: 2019-01-31 | B29: январь 2019 | C29: 4912595.86 | D29: 4361.3 | E29: 5063847.04 | F29: =SUM(C18:C29) -> 58970297.87 | G29: 51668.53 | H29: 61690634.62 | I29: =F29-F17 -> 4295315.94 | J29: -571.51 | K29: 687989.75
A30: 2019-02-28 | B30: февраль | C30: 4847489.76 | D30: 4227.14 | E30: 4944846.53 | F30: =SUM(C19:C30) -> 59548068.62 | G30: 51876.69 | H30: 61830178.48 | I30: =F30-F18 -> 4934884.76 | J30: -391.2 | K30: 676892.15
A31: 2019-03-31 | B31: март | C31: 4779192.1 | D31: 4208.68 | E31: 5087061.63 | F31: =SUM(C20:C31) -> 59376424.93 | G31: 51642.13 | H31: 61507417.22 | I31: =F31-F19 -> 4846413.25 | J31: -569.43 | K31: 301456.38
A32: 2019-04-30 | B32: апрель | C32: 4969756.16 | D32: 4173.48 | E32: 4975079.67 | F32: =SUM(C21:C32) -> 59590638.89 | G32: 51469.66 | H32: 61277491.02 | I32: =F32-F20 -> 5148226.35 | J32: -626.35 | K32: -32241.16
A33: 2019-05-31 | B33: май | C33: 5083122.92 | D33: 4245.61 | E33: 5299630.92 | F33: =SUM(C22:C33) -> 59842604.74 | G33: 51415.04 | H33: 61271784.06 | I33: =F33-F21 -> 5094061.06 | J33: -680.18 | K33: -337910.01
A34: 2019-06-30 | B34: июнь | C34: 4839953.65 | D34: 4171.24 | E34: 5160885.45 | F34: =SUM(C23:C34) -> 59382740.7 | G34: 51280.73 | H34: 61411132.94 | I34: =F34-F22 -> 3568392.35 | J34: -1005.98 | K34: -513762.81
A35: 2019-07-31 | B35: июль | C35: 4994033.31 | D35: 4248.03 | E35: 5314421.49 | F35: =SUM(C24:C35) -> 59102534.88 | G35: 51027.82 | H35: 61333844.13 | I35: =F35-F23 -> 2718544.4 | J35: -1401.78 | K35: -820378.6
A36: 2019-08-31 | B36: август | C36: 4843623.57 | D36: 4302.01 | E36: 5145944.08 | F36: =SUM(C25:C36) -> 58909496.36 | G36: 50983.94 | H36: 61282992.54 | I36: =F36-F24 -> 2051035.25 | J36: -1430.69 | K36: -726392.65
A37: 2019-09-30 | B37: сентябрь | C37: 4915551.53 | D37: 4129.77 | E37: 4906670.41 | F37: =SUM(C26:C37) -> 58917204.04 | G37: 50949.01 | H37: 61154036.77 | I37: =F37-F25 -> 1591449.53 | J37: -1340.79 | K37: -825742.82
A38: 2019-10-31 | B38: октябрь | C38: 4737723.23 | D38: 4164.42 | E38: 5063455.42 | F38: =SUM(C27:C38) -> 58913957.77 | G38: 50928.24 | H38: 61227760.17 | I38: =F38-F26 -> 1248352.27 | J38: -1203.44 | K38: -506170.99
A39: 2019-11-30 | B39: ноябрь | C39: 4590567.62 | D39: 4316.18 | E39: 4941610.12 | F39: =SUM(C28:C39) -> 58578192.79 | G39: 50946 | H39: 61188201.34 | I39: =F39-F27 -> 278238.27 | J39: -1088.28 | K39: -723386.47
A40: 2019-12-31 | B40: декабрь | C40: 4881918.39 | D40: 4487.98 | E40: 5250488.27 | F40: =SUM(C29:C40) -> 58395528.1 | G40: 51035.84 | H40: 61153941.03 | I40: =F40-F28 -> -457894.5 | J40: -813.58 | K40: -595767.36
A41: 2020-01-31 | B41: январь 2020 | C41: 4765939.2 | D41: 4622.11 | E41: 5320201.78 | F41: =SUM(C30:C41) -> 58248871.44 | G41: 51296.65 | H41: 61410295.77 | I41: =F41-F29 -> -721426.43 | J41: -371.88 | K41: -280338.85
A42: 2020-02-29 | B42: февраль | C42: 4585040.78 | D42: 4239.7 | E42: 4941446.94 | F42: =SUM(C31:C42) -> 57986422.46 | G42: 51309.21 | H42: 61406896.18 | I42: =F42-F30 -> -1561646.16 | J42: -567.48 | K42: -423282.3
A43: 2020-03-31 | B43: март | C43: 4906242.37 | D43: 4455.09 | E43: 5297280.44 | F43: =SUM(C32:C43) -> 58113472.73 | G43: 51555.62 | H43: 61617114.99 | I43: =F43-F31 -> -1262952.2 | J43: -86.51 | K43: 109697.77
A44: 2020-04-30 | B44: апрель | C44: 4701497.67 | D44: 4171.93 | E44: 4917280.57 | F44: =SUM(C33:C44) -> 57845214.24 | G44: 51554.07 | H44: 61559315.89 | I44: =F44-F32 -> -1745424.65 | J44: 84.41 | K44: 281824.87
A45: 2020-05-31 | B45: май | C45: 4795690.93 | D45: 4443.1 | E45: 4806288.67 | F45: =SUM(C34:C45) -> 57557782.25 | G45: 51751.56 | H45: 61065973.64 | I45: =F45-F33 -> -2284822.49 | J45: 336.52 | K45: -205810.42
A46: 2020-06-30 | B46: июнь | C46: 4639020.75 | D46: 4188.7 | E46: 5000079.93 | F46: =SUM(C35:C46) -> 57356849.35 | G46: 51769.02 | H46: 60905168.12 | I46: =F46-F34 -> -2025891.35 | J46: 488.29 | K46: -505964.82
A47: 2020-07-31 | B47: июль | C47: 4935551.95 | D47: 4122.15 | E47: 5146990.19 | F47: =SUM(C36:C47) -> 57298367.99 | G47: 51643.14 | H47: 60737736.82 | I47: =F47-F35 -> -1804166.89 | J47: 615.32 | K47: -596107.31
A48: 2020-08-31 | B48: август | C48: 4995000.84 | D48: 4330.62 | E48: 5145432.27 | F48: =SUM(C37:C48) -> 57449745.26 | G48: 51671.75 | H48: 60737225.01 | I48: =F48-F36 -> -1459751.1 | J48: 687.81 | K48: -545767.53
A49: 2020-09-30 | B49: сентябрь | C49: 4970317.8 | D49: 4296.42 | E49: 5088904.88 | F49: =SUM(C38:C49) -> 57504511.53 | G49: 51838.4 | H49: 60919459.48 | I49: =F49-F37 -> -1412692.51 | J49: 889.39 | K49: -234577.29
A50: 2020-10-31 | B50: октябрь | C50: 4960700.83 | D50: 4329.94 | E50: 5158621.64 | F50: =SUM(C39:C50) -> 57727489.13 | G50: 52003.92 | H50: 61014625.7 | I50: =F50-F38 -> -1186468.64 | J50: 1075.68 | K50: -213134.47
A51: 2020-11-30 | B51: ноябрь | C51: 4914088.12 | D51: 4264.59 | E51: 5143963.91 | F51: =SUM(C40:C51) -> 58051009.63 | G51: 51952.33 | H51: 61216979.49 | I51: =F51-F39 -> -527183.16 | J51: 1006.33 | K51: 28778.15
A52: 2020-12-31 | B52: декабрь | C52: 5407356 | D52: 4507 | E52: 5551002.76 | F52: =SUM(C41:C52) -> 58576447.24 | G52: 51971.35 | H52: 61517493.98 | I52: =F52-F40 -> 180919.14 | J52: 935.51 | K52: 363552.95
A53: 2021-01-31 | B53: январь 2021 | C53: 5334273.27 | D53: 4509.02 | E53: 5666078.98 | F53: =SUM(C42:C53) -> 59144781.31 | G53: 51858.26 | H53: 61863371.18 | I53: =F53-F41 -> 895909.87 | J53: 561.61 | K53: 453075.41
A54: 2021-02-28 | B54: февраль | C54: 4956442.19 | D54: 4039.24 | E54: 5137492.3 | F54: =SUM(C43:C54) -> 59516182.72 | G54: 51657.8 | H54: 62059416.54 | I54: =F54-F42 -> 1529760.26 | J54: 348.59 | K54: 652520.36
A55: 2021-03-31 | B55: март | C55: 5405299.41 | D55: 4642 | E55: 5521400.11 | F55: =SUM(C44:C55) -> 60015239.76 | G55: 51844.71 | H55: 62283536.21 | I55: =F55-F43 -> 1901767.03 | J55: 289.09 | K55: 666421.22
A56: 2021-04-30 | B56: апрель | C56: 5257699.64 | D56: 4493.89 | E56: 5387420.04 | F56: =SUM(C45:C56) -> 60571441.73 | G56: 52166.67 | H56: 62753675.68 | I56: =F56-F44 -> 2726227.49 | J56: 612.6 | K56: 1194359.79
A57: 2021-05-31 | B57: май | C57: 5336640.25 | D57: 4632.36 | E57: 5780004.93 | F57: =SUM(C46:C57) -> 61112391.05 | G57: 52355.93 | H57: 63727391.94 | I57: =F57-F45 -> 3554608.8 | J57: 604.37 | K57: 2661418.3
A58: 2021-06-30 | B58: июнь | C58: 5325473.23 | D58: 4565.95 | E58: 5654901.16 | F58: =SUM(C47:C58) -> 61798843.53 | G58: 52733.18 | H58: 64382213.17 | I58: =F58-F46 -> 4441994.18 | J58: 964.16 | K58: 3477045.05
A59: 2021-07-31 | B59: июль | C59: 5202107.44 | D59: 4540.16 | E59: 5454757.66 | F59: =SUM(C48:C59) -> 62065399.02 | G59: 53151.19 | H59: 64689980.64 | I59: =F59-F47 -> 4767031.03 | J59: 1508.05 | K59: 3952243.82
A60: 2021-08-31 | B60: август | C60: 4950840.93 | D60: 4283.29 | E60: 5146189.42 | F60: =SUM(C49:C60) -> 62021239.11 | G60: 53103.86 | H60: 64690737.79 | I60: =F60-F48 -> 4571493.85 | J60: 1432.11 | K60: 3953512.78
A61: 2021-09-30 | B61: сентябрь | C61: 4841617.77 | D61: 4302.95 | E61: 5430736.42 | F61: =SUM(C50:C61) -> 61892539.08 | G61: 53110.39 | H61: 65032569.33 | I61: =F61-F49 -> 4388027.55 | J61: 1271.99 | K61: 4113109.85
A62: 2021-10-31 | B62: октябрь | C62: 5297724.77 | D62: 4641.11 | E62: 5770338.23 | F62: =SUM(C51:C62) -> 62229563.02 | G62: 53421.56 | H62: 65644285.92 | I62: =F62-F50 -> 4502073.89 | J62: 1417.64 | K62: 4629660.22
A63: 2021-11-30 | B63: ноябрь | C63: 4831292.48 | D63: 4549.77 | E63: 5665906.57 | F63: =SUM(C52:C63) -> 62146767.38 | G63: 53706.74 | H63: 66166228.58 | I63: =F63-F51 -> 4095757.75 | J63: 1754.41 | K63: 4949249.09
A64: 2021-12-31 | B64: декабрь | C64: 4728086.36 | D64: 4590.93 | E64: 5880396.43 | F64: =SUM(C53:C64) -> 61467497.74 | G64: 53790.67 | H64: 66495622.25 | I64: =F64-F52 -> 2891050.5 | J64: 1819.32 | K64: 4978128.27
A65: 2022-01-31 | B65: январь 2022 | C65: 4822021.75 | D65: 4595.32 | E65: 5546533.17 | F65: =SUM(C54:C65) -> 60955246.22 | G65: 53876.97 | H65: 66376076.44 | I65: =F65-F53 -> 1810464.91 | J65: 2018.71 | K65: 4512705.26
A66: 2022-02-28 | B66: февраль | C66: 4731232.68 | D66: 4231.67 | E66: 5242023.61 | F66: =SUM(C55:C66) -> 60730036.71 | G66: 54069.4 | H66: 66480607.75 | I66: =F66-F54 -> 1213853.99 | J66: 2411.6 | K66: 4421191.21
A67: 2022-03-31 | B67: март | C67: 5184387.49 | D67: 4641.62 | E67: 5472376.54 | F67: =SUM(C56:C67) -> 60509124.79 | G67: 54069.02 | H67: 66431584.18 | I67: =F67-F55 -> 493885.03 | J67: 2224.31 | K67: 4148047.97
A68: 2022-04-30 | B68: апрель | C68: 4978588.32 | D68: 4352.3 | E68: 5281269.3 | F68: =SUM(C57:C68) -> 60230013.47 | G68: 53927.43 | H68: 66325433.44 | I68: =F68-F56 -> -341428.26 | J68: 1760.76 | K68: 3571757.76
A69: 2022-05-31 | B69: май | C69: 4839568.74 | D69: 4269.45 | E69: 5326361.57 | F69: =SUM(C58:C69) -> 59732941.96 | G69: 53564.52 | H69: 65871790.08 | I69: =F69-F57 -> -1379449.09 | J69: 1208.59 | K69: 2144398.14
A70: 2022-06-30 | B70: июнь | C70: 4191494.53 | D70: 4042.26 | E70: 4512018.48 | F70: =SUM(C59:C70) -> 58598963.26 | G70: 53040.83 | H70: 64728907.4 | I70: =F70-F58 -> -3199880.27 | J70: 307.65 | K70: 346694.23
A71: 2022-07-31 | B71: июль | C71: 4556393.07 | D71: 4186.96 | E71: 4822453.88 | F71: =SUM(C60:C71) -> 57953248.89 | G71: 52687.63 | H71: 64096603.62 | I71: =F71-F59 -> -4112150.13 | J71: -463.56 | K71: -593377.02
A72: 2022-08-31 | B72: август | C72: 4542900.06 | D72: 4302.11 | E72: 5148592.25 | F72: =SUM(C61:C72) -> 57545308.02 | G72: 52706.45 | H72: 64099006.45 | I72: =F72-F60 -> -4475931.09 | J72: -397.41 | K72: -591731.34
A73: 2022-09-30 | B73: сентябрь | C73: 4411472.26 | D73: 4203.24 | E73: 4829896.49 | F73: =SUM(C62:C73) -> 57115162.51 | G73: 52606.74 | H73: 63498166.52 | I73: =F73-F61 -> -4777376.57 | J73: -503.65 | K73: -1534402.81
A74: 2022-10-31 | B74: октябрь | C74: 4465897.18 | D74: 4222.58 | E74: 4797230.85 | F74: =SUM(C63:C74) -> 56283334.92 | G74: 52188.21 | H74: 62525059.14 | I74: =F74-F62 -> -5946228.1 | J74: -1233.35 | K74: -3119226.78
A75: 2022-11-30 | B75: ноябрь | C75: 4446986.56 | D75: 4234.65 | E75: 4651521.6 | F75: =SUM(C64:C75) -> 55899029 | G75: 51873.09 | H75: 61510674.17 | I75: =F75-F63 -> -6247738.38 | J75: -1833.65 | K75: -4655554.41
A76: 2022-12-31 | B76: декабрь | C76: 4302192.74 | D76: 4324.02 | E76: 4916419.76 | F76: =SUM(C65:C76) -> 55473135.38 | G76: 51606.18 | H76: 60546697.5 | I76: =F76-F64 -> -5994362.36 | J76: -2184.49 | K76: -5948924.75
A77: 2023-01-31 | B77: январь 2023 | C77: 4764216.91 | D77: 4495.39 | E77: 5085964.22 | F77: =SUM(C66:C77) -> 55415330.54 | G77: 51506.25 | H77: 60086128.55 | I77: =F77-F65 -> -5539915.68 | J77: -2370.72 | K77: -6289947.89
A78: 2023-02-28 | B78: февраль | C78: 4728087.99 | D78: 4227.12 | E78: 4929273.15 | F78: =SUM(C67:C78) -> 55412185.85 | G78: 51501.7 | H78: 59773378.09 | I78: =F78-F66 -> -5317850.86 | J78: -2567.7 | K78: -6707229.66
A79: 2023-03-31 | B79: март | C79: 5155031.83 | D79: 4669.34 | E79: 5645407.91 | F79: =SUM(C68:C79) -> 55382830.19 | G79: 51529.42 | H79: 59946409.46 | I79: =F79-F67 -> -5126294.6 | J79: -2539.6 | K79: -6485174.72
A80: 2023-04-30 | B80: апрель | C80: 5230751.68 | D80: 4702.33 | E80: 5563263.56 | F80: =SUM(C69:C80) -> 55634993.55 | G80: 51879.45 | H80: 60228403.72 | I80: =F80-F68 -> -4595019.92 | J80: -2047.98 | K80: -6097029.72
A81: 2023-05-31 | B81: май | C81: 5040634.51 | D81: 4731.52 | E81: 5451249.54 | F81: =SUM(C70:C81) -> 55836059.32 | G81: 52341.52 | H81: 60353291.69 | I81: =F81-F69 -> -3896882.64 | J81: -1223 | K81: -5518498.39
A82: 2023-06-30 | B82: июнь | C82: 4997858.71 | D82: 4495.58 | E82: 5226662.59 | F82: =SUM(C71:C82) -> 56642423.5 | G82: 52794.84 | H82: 61067935.8 | I82: =F82-F70 -> -1956539.76 | J82: -245.99 | K82: -3660971.6
A83: 2023-07-31 | B83: июль | C83: 5022446.57 | D83: 4637.68 | E83: 5551679.02 | F83: =SUM(C72:C83) -> 57108477 | G83: 53245.56 | H83: 61797160.94 | I83: =F83-F71 -> -844771.89 | J83: 557.93 | K83: -2299442.68
A84: 2023-08-31 | B84: август | C84: 5196182.55 | D84: 4619.85 | E84: 5562828.99 | F84: =SUM(C73:C84) -> 57761759.49 | G84: 53563.3 | H84: 62211397.68 | I84: =F84-F72 -> 216451.47 | J84: 856.85 | K84: -1887608.77
A85: 2023-09-30 | B85: сентябрь | C85: 5092870.78 | D85: 4484.08 | E85: 5296264 | F85: =SUM(C74:C85) -> 58443158.01 | G85: 53844.14 | H85: 62677765.19 | I85: =F85-F73 -> 1327995.5 | J85: 1237.4 | K85: -820401.33
A86: 2023-10-31 | B86: октябрь | C86: 5346474.48 | D86: 4731.63 | E86: 5590428.34 | F86: =SUM(C75:C86) -> 59323735.31 | G86: 54353.19 | H86: 63470962.68 | I86: =F86-F74 -> 3040400.39 | J86: 2164.98 | K86: 945903.54
A87: 2023-11-30 | B87: ноябрь | C87: 4756056.23 | D87: 4396.85 | E87: 5065613.34 | F87: =SUM(C76:C87) -> 59632804.98 | G87: 54515.39 | H87: 63885054.42 | I87: =F87-F75 -> 3733775.98 | J87: 2642.3 | K87: 2374380.25
A88: 2023-12-31 | B88: декабрь | C88: 4872799.6 | D88: 4403.72 | E88: 5266341.49 | F88: =SUM(C77:C88) -> 60203411.84 | G88: 54595.09 | H88: 64234976.15 | I88: =F88-F76 -> 4730276.46 | J88: 2988.91 | K88: 3688278.65
A89: 2024-01-31 | B89: январь 2024 | C89: 4633318.62 | D89: 4320.94 | E89: 4912625.03 | F89: =SUM(C78:C89) -> 60072513.55 | G89: 54420.64 | H89: 64061636.96 | I89: =F89-F77 -> 4657183.01 | J89: 2914.39 | K89: 3975508.41
A90: 2024-02-29 | B90: февраль | C90: 4575869.22 | D90: 4209.92 | E90: 4932270.06 | F90: =SUM(C79:C90) -> 59920294.78 | G90: 54403.44 | H90: 64064633.87 | I90: =F90-F78 -> 4508108.93 | J90: 2901.74 | K90: 4291255.78
A91: 2024-03-31 | B91: март | C91: 4973985.07 | D91: 4520.43 | E91: 5354749.6 | F91: =SUM(C80:C91) -> 59739248.02 | G91: 54254.53 | H91: 63773975.56 | I91: =F91-F79 -> 4356417.83 | J91: 2725.11 | K91: 3827566.1
A92: 2024-04-30 | B92: апрель | C92: 4659821.07 | D92: 4237.62 | E92: 5231173.63 | F92: =SUM(C81:C92) -> 59168317.41 | G92: 53789.82 | H92: 63441885.63 | I92: =F92-F80 -> 3533323.86 | J92: 1910.37 | K92: 3213481.91
A93: 2024-05-31 | B93: май | C93: 4815649.27 | D93: 4379.34 | E93: 5397776.54 | F93: =SUM(C82:C93) -> 58943332.17 | G93: 53437.64 | H93: 63388412.63 | I93: =F93-F81 -> 3107272.85 | J93: 1096.12 | K93: 3035120.94
A94: 2024-06-30 | B94: июнь | C94: 4711208.37 | D94: 4211.82 | E94: 5200151.21 | F94: =SUM(C83:C94) -> 58656681.83 | G94: 53153.88 | H94: 63361901.25 | I94: =F94-F82 -> 2014258.33 | J94: 359.04 | K94: 2293965.45
A95: 2024-07-31 | B95: июль | C95: 4540784.11 | D95: 4220.28 | E95: 5059164.36 | F95: =SUM(C84:C95) -> 58175019.37 | G95: 52736.48 | H95: 62869386.59 | I95: =F95-F83 -> 1066542.37 | J95: -509.08 | K95: 1072225.65
A96: 2024-08-31 | B96: август | C96: 4521320.57 | D96: 4288.32 | E96: 4880857.25 | F96: =SUM(C85:C96) -> 57500157.39 | G96: 52404.95 | H96: 62187414.85 | I96: =F96-F84 -> -261602.1 | J96: -1158.35 | K96: -23982.83
A97: 2024-09-30 | B97: сентябрь | C97: 4209409.73 | D97: 4043.77 | E97: 4372086.19 | F97: =SUM(C86:C97) -> 56616696.34 | G97: 51964.64 | H97: 61263237.04 | I97: =F97-F85 -> -1826461.67 | J97: -1879.5 | K97: -1414528.15
A98: 2024-10-31 | B98: октябрь | C98: 4445489.86 | D98: 4086.18 | E98: 4735098.57 | F98: =SUM(C87:C98) -> 55715711.72 | G98: 51319.19 | H98: 60407907.27 | I98: =F98-F86 -> -3608023.59 | J98: -3034 | K98: -3063055.41
A99: 2024-11-30 | B99: ноябрь | C99: 4339027.41 | D99: 4146.48 | E99: 4744632.51 | F99: =SUM(C88:C99) -> 55298682.9 | G99: 51068.82 | H99: 60086926.44 | I99: =F99-F87 -> -4334122.08 | J99: -3446.57 | K99: -3798127.98
A100: 2024-12-31 | B100: декабрь | C100: 4691154.52 | D100: 4570.18 | E100: 5047055.63 | F100: =SUM(C89:C100) -> 55117037.82 | G100: 51235.28 | H100: 59867640.58 | I100: =F100-F88 -> -5086374.02 | J100: -3359.81 | K100: -4367335.57
A101: 2025-01-31 | B101: январь 2025 | C101: 4681058.22 | D101: 4431.58 | E101: 4908996.96 | F101: =SUM(C90:C101) -> 55164777.42 | G101: 51345.92 | H101: 59864012.51 | I101: =F101-F89 -> -4907736.13 | J101: -3074.72 | K101: -4197624.45
A102: 2025-02-28 | B102: февраль | C102: 4361961.79 | D102: 4072.08 | E102: 4485676.04 | F102: =SUM(C91:C102) -> 54950869.99 | G102: 51208.08 | H102: 59417418.49 | I102: =F102-F90 -> -4969424.79 | J102: -3195.36 | K102: -4647215.38
A103: 2025-03-31 | B103: март | C103: 4756370.33 | D103: 4460.98 | E103: 4974812.31 | F103: =SUM(C92:C103) -> 54733255.25 | G103: 51148.63 | H103: 59037481.2 | I103: =F103-F91 -> -5005992.77 | J103: -3105.9 | K103: -4736494.36
A104: 2025-04-30 | B104: апрель | C104: 4483599.44 | D104: 4249.41 | E104: 4901130.63 | F104: =SUM(C93:C104) -> 54557033.62 | G104: 51160.42 | H104: 58707438.2 | I104: =F104-F92 -> -4611283.79 | J104: -2629.4 | K104: -4734447.43
A105: 2025-05-31 | B105: май | C105: 4823113.26 | D105: 4463.48 | E105: 5054039.72 | F105: =SUM(C94:C105) -> 54564497.61 | G105: 51244.56 | H105: 58363701.38 | I105: =F105-F93 -> -4378834.56 | J105: -2193.08 | K105: -5024711.25
A106: 2025-06-30 | B106: июнь | C106: 4522995.54 | D106: 4128.22 | E106: 4828183.27 | F106: =SUM(C95:C106) -> 54376284.78 | G106: 51160.96 | H106: 57991733.44 | I106: =F106-F94 -> -4280397.05 | J106: -1992.92 | K106: -5370167.81

Sheet Графики производства
